Department Family,Entity,Date,Expense Type,Expense Area,Supplier,Transaction Number,AP Amount,
Department of Health,St. Helens&Knowsley Hospitals NHS Trust,30/06/2021,Blood Products,HAEM + BLOOD TRANSFUSION,NHS BLOOD & TRANSPLANT,38287165,"87,513.74",
Department of Health,St. Helens&Knowsley Hospitals NHS Trust,30/06/2021,Blood Products,HAEM + BLOOD TRANSFUSION,NHS BLOOD & TRANSPLANT,38583104,"87,513.74",
Department of Health,St. Helens&Knowsley Hospitals NHS Trust,30/06/2021,CNST contributions,CLINICAL NEGLIGENCE,10003266,NHSLACONT-T213,"1,454,037.00 ",
Department of Health,St. Helens&Knowsley Hospitals NHS Trust,30/06/2021,Computer Maintenance,MMDA PROGRAMME COSTS - SHARED SERVICES,DELL CORPORATION LTD,38440744,"37,716.59",
Department of Health,St. Helens&Knowsley Hospitals NHS Trust,30/06/2021,Computer Maintenance,MMDA PROGRAMME COSTS - SHARED SERVICES,DELL CORPORATION LTD,38440744,"7,543.32",
Department of Health,St. Helens&Knowsley Hospitals NHS Trust,30/06/2021,Computer Maintenance,INFORMATION DEPARTMENT,PERFECT WARD LTD,38583107,"42,023.00",
Department of Health,St. Helens&Knowsley Hospitals NHS Trust,30/06/2021,Computer Maintenance,INFORMATION DEPARTMENT,PERFECT WARD LTD,38583107,"8,404.60",
Department of Health,St. Helens&Knowsley Hospitals NHS Trust,30/06/2021,Continence Products,COMMUNITY CONTINENCE SERVICE,ESSITY UK LTD,38702909,"38,971.06",
Department of Health,St. Helens&Knowsley Hospitals NHS Trust,30/06/2021,Course Fees,I T EXECUTIVE,QA LTD,38558084,"30,000.00",
Department of Health,St. Helens&Knowsley Hospitals NHS Trust,30/06/2021,Course Fees,I T EXECUTIVE,QA LTD,38558084,"6,000.00",
Department of Health,St. Helens&Knowsley Hospitals NHS Trust,30/06/2021,Drugs,GASTROLOGY SNR MEDICAL,ALLOGA UK LTD,38608201,"19,440.00",
Department of Health,St. Helens&Knowsley Hospitals NHS Trust,30/06/2021,Equip Maint Contracts,RADIOGRAPHY WHISTON,SUPPLY CHAIN COORDINATION LIMITED,38678574,"48,463.99",
Department of Health,St. Helens&Knowsley Hospitals NHS Trust,30/06/2021,IGComp3PSoft - Additions,Balance Sheet,PHILIPS UK AND IRELAND,38703695,"40,733.94",
Department of Health,St. Helens&Knowsley Hospitals NHS Trust,30/06/2021,Lab Equip Maint Contracts,CHEMICAL PATHOLOGY DEPT,SIEMENS HEALTHCARE DIAGNOSTICS LTD,38651716,"110,465.34",
Department of Health,St. Helens&Knowsley Hospitals NHS Trust,30/06/2021,Laboratory Chemicals,HAEM + BLOOD TRANSFUSION,SYSMEX UK LTD,38445213,"39,858.71",
Department of Health,St. Helens&Knowsley Hospitals NHS Trust,30/06/2021,Laboratory Chemicals,HAEM + BLOOD TRANSFUSION,SYSMEX UK LTD,38445213,"7,971.74",
Department of Health,St. Helens&Knowsley Hospitals NHS Trust,30/06/2021,Lease Rents,REGIONAL VACCINATION CENTRE,ST HELENS RFC LTD,38387714,"116,896.41",
Department of Health,St. Helens&Knowsley Hospitals NHS Trust,30/06/2021,Lease Rents,PFI DESIGN + CONSTRUCTION,EDDISONS COMMERCIAL LTD,38594022,"62,400.00",
Department of Health,St. Helens&Knowsley Hospitals NHS Trust,30/06/2021,Lease Rents,MMDA PROGRAMME COSTS - SHARED SERVICES,OAKMERE ESTATES (LIVERPOOL) LTD,38660705,"34,500.00",
Department of Health,St. Helens&Knowsley Hospitals NHS Trust,30/06/2021,Lease Rents,PFI DESIGN + CONSTRUCTION,TORUS62 LTD,38678618,"28,548.00",
Department of Health,St. Helens&Knowsley Hospitals NHS Trust,30/06/2021,Legal / Prof Fees,CIPHA - STP SHARED CARE RECORD,LIVERPOOL UNIVERSITY HOSPITALS NHS FOUNDATION TRUST,38530150,"37,500.00",
Department of Health,St. Helens&Knowsley Hospitals NHS Trust,30/06/2021,Med & Surg Equip General,THEATRES BURNS + PLASTICS,AAH PHARMACEUTICALS LTD,38484675,52.07,
Department of Health,St. Helens&Knowsley Hospitals NHS Trust,30/06/2021,Med & Surg Equip General,THEATRES MAIN ST HELEN'S,AAH PHARMACEUTICALS LTD,38484675,208.29,
Department of Health,St. Helens&Knowsley Hospitals NHS Trust,30/06/2021,Med & Surg Equip General,COVID,B BRAUN MEDICAL LTD,38599204,320.00,
Department of Health,St. Helens&Knowsley Hospitals NHS Trust,30/06/2021,Med & Surg Equip General,COVID,B BRAUN MEDICAL LTD,38599204,"18,000.00",
Department of Health,St. Helens&Knowsley Hospitals NHS Trust,30/06/2021,Med & Surg Equip General,COVID,B BRAUN MEDICAL LTD,38599204,"9,600.00",
Department of Health,St. Helens&Knowsley Hospitals NHS Trust,30/06/2021,Med & Surg Equip General,COVID,B BRAUN MEDICAL LTD,38599204,"1,300.00",
Department of Health,St. Helens&Knowsley Hospitals NHS Trust,30/06/2021,Med & Surg Equip General,COVID,B BRAUN MEDICAL LTD,38599204,"5,844.00",
Department of Health,St. Helens&Knowsley Hospitals NHS Trust,30/06/2021,Med & Surg Equip General,REGIONAL VACCINATION CENTRE,ST HELENS RFC LTD,38599208,"117,932.94",
Department of Health,St. Helens&Knowsley Hospitals NHS Trust,30/06/2021,Med & Surg Equip General,REGIONAL VACCINATION CENTRE,ST HELENS RFC LTD,38599208,"23,586.59",
Department of Health,St. Helens&Knowsley Hospitals NHS Trust,30/06/2021,Med & Surg Maint Contract,COLD DECONTAMINATION,IM MED LTD,38507918,"41,253.75",
Department of Health,St. Helens&Knowsley Hospitals NHS Trust,30/06/2021,Med & Surg Maint Contract,COLD DECONTAMINATION,IM MED LTD,38507918,"29,746.12",
Department of Health,St. Helens&Knowsley Hospitals NHS Trust,30/06/2021,Med Equip Additions,Balance Sheet,GETINGE LTD,38445642,"26,750.00",
Department of Health,St. Helens&Knowsley Hospitals NHS Trust,30/06/2021,Med Equip Additions,Balance Sheet,GETINGE LTD,38445642,"5,350.00",
Department of Health,St. Helens&Knowsley Hospitals NHS Trust,30/06/2021,Med Equip Additions,Balance Sheet,PENTAX UK LTD,38508407,"24,437.50",
Department of Health,St. Helens&Knowsley Hospitals NHS Trust,30/06/2021,Med Equip Additions,Balance Sheet,PENTAX UK LTD,38508407,"3,850.00",
Department of Health,St. Helens&Knowsley Hospitals NHS Trust,30/06/2021,Med Equip Additions,Balance Sheet,PENTAX UK LTD,38508407,"5,657.50",
Department of Health,St. Helens&Knowsley Hospitals NHS Trust,30/06/2021,Med Equip Additions,Balance Sheet,SPACELABS HEALTHCARE LTD,38708666,"16,326.70",
Department of Health,St. Helens&Knowsley Hospitals NHS Trust,30/06/2021,Med Equip Additions,Balance Sheet,SPACELABS HEALTHCARE LTD,38708666,"5,410.59",
Department of Health,St. Helens&Knowsley Hospitals NHS Trust,30/06/2021,Med Equip Additions,Balance Sheet,SPACELABS HEALTHCARE LTD,38708666,"4,071.08",
Department of Health,St. Helens&Knowsley Hospitals NHS Trust,30/06/2021,Med Equip Additions,Balance Sheet,SPACELABS HEALTHCARE LTD,38708666,"5,161.67",
Department of Health,St. Helens&Knowsley Hospitals NHS Trust,30/06/2021,Miscellaneous Expenditure,HSDU WHISTON,SYNERGY HEALTH (UK) LTD,38439095,"178,291.49",
Department of Health,St. Helens&Knowsley Hospitals NHS Trust,30/06/2021,Miscellaneous Expenditure,HSDU WHISTON,SYNERGY HEALTH (UK) LTD,38507745,"25,748.34",
Department of Health,St. Helens&Knowsley Hospitals NHS Trust,30/06/2021,Miscellaneous Expenditure,PFI ENABLING WORKS,NEW HOSPITALS (ST HELENS & KNOWSLEY) LTD,38530542,"1,008,097.13",
Department of Health,St. Helens&Knowsley Hospitals NHS Trust,30/06/2021,Miscellaneous Expenditure,HSDU WHISTON,SYNERGY HEALTH (UK) LTD,38716962,"178,291.49",
Department of Health,St. Helens&Knowsley Hospitals NHS Trust,30/06/2021,Mobile Phones,A + E NURSING WHISTON,VODAFONE LTD,38412702,110.03,
Department of Health,St. Helens&Knowsley Hospitals NHS Trust,30/06/2021,Mobile Phones,ACUTE KIDNEY INJURY SERVICE,VODAFONE LTD,38412702,36.14,
Department of Health,St. Helens&Knowsley Hospitals NHS Trust,30/06/2021,Mobile Phones,ACUTE MEDICAL UNIT,VODAFONE LTD,38412702,72.00,
Department of Health,St. Helens&Knowsley Hospitals NHS Trust,30/06/2021,Mobile Phones,AMU NURSE SPECIALISTS,VODAFONE LTD,38412702,252.72,
Department of Health,St. Helens&Knowsley Hospitals NHS Trust,30/06/2021,Mobile Phones,ANTI-COAGULATION NURSING TEAM,VODAFONE LTD,38412702,50.15,
Department of Health,St. Helens&Knowsley Hospitals NHS Trust,30/06/2021,Mobile Phones,B + P MEDICAL PHOTOGRAPHY,VODAFONE LTD,38412702,72.00,
Department of Health,St. Helens&Knowsley Hospitals NHS Trust,30/06/2021,Mobile Phones,B + P MEDICAL STAFF,VODAFONE LTD,38412702,72.00,
Department of Health,St. Helens&Knowsley Hospitals NHS Trust,30/06/2021,Mobile Phones,BED MANAGEMENT,VODAFONE LTD,38412702,107.53,
Department of Health,St. Helens&Knowsley Hospitals NHS Trust,30/06/2021,Mobile Phones,BEVAN COURT 1,VODAFONE LTD,38412702,117.00,
Department of Health,St. Helens&Knowsley Hospitals NHS Trust,30/06/2021,Mobile Phones,BEVAN COURT 2,VODAFONE LTD,38412702,126.36,
Department of Health,St. Helens&Knowsley Hospitals NHS Trust,30/06/2021,Mobile Phones,BREAST SURGERY,VODAFONE LTD,38412702,9.00,
Department of Health,St. Helens&Knowsley Hospitals NHS Trust,30/06/2021,Mobile Phones,BUSINESS RELATIONSHIPS,VODAFONE LTD,38412702,36.00,
Department of Health,St. Helens&Knowsley Hospitals NHS Trust,30/06/2021,Mobile Phones,C.O.P.D SERVICE (KPCT),VODAFONE LTD,38412702,9.00,
Department of Health,St. Helens&Knowsley Hospitals NHS Trust,30/06/2021,Mobile Phones,C.O.P.D SERVICE (STHPCT),VODAFONE LTD,38412702,756.00,
Department of Health,St. Helens&Knowsley Hospitals NHS Trust,30/06/2021,Mobile Phones,C19 VAC PRGME HR PROJECT SUPPORT,VODAFONE LTD,38412702,458.99,
Department of Health,St. Helens&Knowsley Hospitals NHS Trust,30/06/2021,Mobile Phones,CANCER CORE STAFF AND NON-PAY,VODAFONE LTD,38412702,72.00,
Department of Health,St. Helens&Knowsley Hospitals NHS Trust,30/06/2021,Mobile Phones,CANCER NURSE SPEC MCG,VODAFONE LTD,38412702,72.00,
Department of Health,St. Helens&Knowsley Hospitals NHS Trust,30/06/2021,Mobile Phones,CANCER NURSE SPEC SCG,VODAFONE LTD,38412702,70.20,
Department of Health,St. Helens&Knowsley Hospitals NHS Trust,30/06/2021,Mobile Phones,CANCER SERVICES - ADMIN,VODAFONE LTD,38412702,50.40,
Department of Health,St. Helens&Knowsley Hospitals NHS Trust,30/06/2021,Mobile Phones,CANCER SVS CO-ORDINATION,VODAFONE LTD,38412702,234.00,
Department of Health,St. Helens&Knowsley Hospitals NHS Trust,30/06/2021,Mobile Phones,CARDIO-RESPIRATORY (ECG),VODAFONE LTD,38412702,45.00,
Department of Health,St. Helens&Knowsley Hospitals NHS Trust,30/06/2021,Mobile Phones,CARDIOLOGY NURSING,VODAFONE LTD,38412702,90.00,
Department of Health,St. Helens&Knowsley Hospitals NHS Trust,30/06/2021,Mobile Phones,CARDIOLOGY SNR MEDICAL,VODAFONE LTD,38412702,81.00,
Department of Health,St. Helens&Knowsley Hospitals NHS Trust,30/06/2021,Mobile Phones,CARE OF ELDERLY MED STAFF,VODAFONE LTD,38412702,693.91,
Department of Health,St. Helens&Knowsley Hospitals NHS Trust,30/06/2021,Mobile Phones,CHAIRMAN'S OFFICE,VODAFONE LTD,38412702,252.00,
Department of Health,St. Helens&Knowsley Hospitals NHS Trust,30/06/2021,Mobile Phones,CHIEF EXECUTIVE'S OFFICE,VODAFONE LTD,38412702,573.20,
Department of Health,St. Helens&Knowsley Hospitals NHS Trust,30/06/2021,Mobile Phones,CLINICAL GOVERNANCE TEAM,VODAFONE LTD,38412702,27.00,
Department of Health,St. Helens&Knowsley Hospitals NHS Trust,30/06/2021,Mobile Phones,CLINICAL PSYCHOLOGY,VODAFONE LTD,38412702,163.63,
Department of Health,St. Helens&Knowsley Hospitals NHS Trust,30/06/2021,Mobile Phones,CLINICAL SUPPORT DIV MGMT,VODAFONE LTD,38412702,72.36,
Department of Health,St. Helens&Knowsley Hospitals NHS Trust,30/06/2021,Mobile Phones,COE NURSE SPECIALISTS,VODAFONE LTD,38412702,117.00,
Department of Health,St. Helens&Knowsley Hospitals NHS Trust,30/06/2021,Mobile Phones,COLD DECONTAMINATION,VODAFONE LTD,38412702,36.00,
Department of Health,St. Helens&Knowsley Hospitals NHS Trust,30/06/2021,Mobile Phones,COLD DECONTAMINATION WHISTON,VODAFONE LTD,38412702,45.00,
Department of Health,St. Helens&Knowsley Hospitals NHS Trust,30/06/2021,Mobile Phones,COMMUNICATIONS,VODAFONE LTD,38412702,511.94,
Department of Health,St. Helens&Knowsley Hospitals NHS Trust,30/06/2021,Mobile Phones,COMMUNITY CARDIAC TEAM,VODAFONE LTD,38412702,356.40,
Department of Health,St. Helens&Knowsley Hospitals NHS Trust,30/06/2021,Mobile Phones,COMMUNITY CONTINENCE SERVICE,VODAFONE LTD,38412702,184.97,
Department of Health,St. Helens&Knowsley Hospitals NHS Trust,30/06/2021,Mobile Phones,COMMUNITY FRAILTY SERVICE,VODAFONE LTD,38412702,619.46,
Department of Health,St. Helens&Knowsley Hospitals NHS Trust,30/06/2021,Mobile Phones,COMMUNITY MATRON,VODAFONE LTD,38412702,140.14,
Department of Health,St. Helens&Knowsley Hospitals NHS Trust,30/06/2021,Mobile Phones,COMMUNITY MIDWIFERY,VODAFONE LTD,38412702,"3,874.24",
Department of Health,St. Helens&Knowsley Hospitals NHS Trust,30/06/2021,Mobile Phones,COMMUNITY NURSING MANAGEMENT,VODAFONE LTD,38412702,78.14,
Department of Health,St. Helens&Knowsley Hospitals NHS Trust,30/06/2021,Mobile Phones,COMMUNITY PAEDIATRICS,VODAFONE LTD,38412702,943.20,
Department of Health,St. Helens&Knowsley Hospitals NHS Trust,30/06/2021,Mobile Phones,COMMUNITY SERVICES MANAGEMENT,VODAFONE LTD,38412702,44.80,
Department of Health,St. Helens&Knowsley Hospitals NHS Trust,30/06/2021,Mobile Phones,COMMUNITY SLA'S,VODAFONE LTD,38412702,324.08,
Department of Health,St. Helens&Knowsley Hospitals NHS Trust,30/06/2021,Mobile Phones,COMPLAINTS,VODAFONE LTD,38412702,36.00,
Department of Health,St. Helens&Knowsley Hospitals NHS Trust,30/06/2021,Mobile Phones,COVID,VODAFONE LTD,38412702,531.60,
Department of Health,St. Helens&Knowsley Hospitals NHS Trust,30/06/2021,Mobile Phones,DELIVERY SUITE,VODAFONE LTD,38412702,9.00,
Department of Health,St. Helens&Knowsley Hospitals NHS Trust,30/06/2021,Mobile Phones,DIABETES NURSING,VODAFONE LTD,38412702,72.00,
Department of Health,St. Helens&Knowsley Hospitals NHS Trust,30/06/2021,Mobile Phones,DIABETES SNR MEDICAL,VODAFONE LTD,38412702,72.00,
Department of Health,St. Helens&Knowsley Hospitals NHS Trust,30/06/2021,Mobile Phones,DIABETES STP,VODAFONE LTD,38412702,432.97,
Department of Health,St. Helens&Knowsley Hospitals NHS Trust,30/06/2021,Mobile Phones,DIGITAL ASPIRATION PRGRME,VODAFONE LTD,38412702,36.00,
Department of Health,St. Helens&Knowsley Hospitals NHS Trust,30/06/2021,Mobile Phones,DN CENTRAL,VODAFONE LTD,38412702,638.04,
Department of Health,St. Helens&Knowsley Hospitals NHS Trust,30/06/2021,Mobile Phones,DN HAYDOCK AND NEWTON,VODAFONE LTD,38412702,735.25,
Department of Health,St. Helens&Knowsley Hospitals NHS Trust,30/06/2021,Mobile Phones,DN NORTH,VODAFONE LTD,38412702,316.20,
Department of Health,St. Helens&Knowsley Hospitals NHS Trust,30/06/2021,Mobile Phones,DN SOUTH,VODAFONE LTD,38412702,"2,113.85",
Department of Health,St. Helens&Knowsley Hospitals NHS Trust,30/06/2021,Mobile Phones,DN St Helens OOH,VODAFONE LTD,38412702,258.80,
Department of Health,St. Helens&Knowsley Hospitals NHS Trust,30/06/2021,Mobile Phones,DUFFY SUITE INTERMEDIATE CARE UNIT,VODAFONE LTD,38412702,36.00,
Department of Health,St. Helens&Knowsley Hospitals NHS Trust,30/06/2021,Mobile Phones,EAST MIDLANDS HEE,VODAFONE LTD,38412702,223.20,
Department of Health,St. Helens&Knowsley Hospitals NHS Trust,30/06/2021,Mobile Phones,EMERGENCY PLANNING,VODAFONE LTD,38412702,36.00,
Department of Health,St. Helens&Knowsley Hospitals NHS Trust,30/06/2021,Mobile Phones,ENT MEDICAL STAFF,VODAFONE LTD,38412702,2.80,
Department of Health,St. Helens&Knowsley Hospitals NHS Trust,30/06/2021,Mobile Phones,EPMA,VODAFONE LTD,38412702,108.00,
Department of Health,St. Helens&Knowsley Hospitals NHS Trust,30/06/2021,Mobile Phones,ESTATE SURVEY SECTION,VODAFONE LTD,38412702,36.00,
Department of Health,St. Helens&Knowsley Hospitals NHS Trust,30/06/2021,Mobile Phones,EXECUTIVE PAYROLL,VODAFONE LTD,38412702,218.22,
Department of Health,St. Helens&Knowsley Hospitals NHS Trust,30/06/2021,Mobile Phones,FACILITIES MANAGEMENT,VODAFONE LTD,38412702,299.63,
Department of Health,St. Helens&Knowsley Hospitals NHS Trust,30/06/2021,Mobile Phones,FALLS NURSE,VODAFONE LTD,38412702,45.66,
Department of Health,St. Helens&Knowsley Hospitals NHS Trust,30/06/2021,Mobile Phones,FINANCE DIRECTORATE HQ,VODAFONE LTD,38412702,"1,346.40",
Department of Health,St. Helens&Knowsley Hospitals NHS Trust,30/06/2021,Mobile Phones,GASTRO UPPER GI FUND,VODAFONE LTD,38412702,36.00,
Department of Health,St. Helens&Knowsley Hospitals NHS Trust,30/06/2021,Mobile Phones,GASTROLOGY NURSING,VODAFONE LTD,38412702,288.00,
Department of Health,St. Helens&Knowsley Hospitals NHS Trust,30/06/2021,Mobile Phones,GASTROLOGY SNR MEDICAL,VODAFONE LTD,38412702,402.36,
Department of Health,St. Helens&Knowsley Hospitals NHS Trust,30/06/2021,Mobile Phones,GEN MED ENDOSCOPY H2,VODAFONE LTD,38412702,36.00,
Department of Health,St. Helens&Knowsley Hospitals NHS Trust,30/06/2021,Mobile Phones,GEN MEDICINE MEDICAL STF,VODAFONE LTD,38412702,153.00,
Department of Health,St. Helens&Knowsley Hospitals NHS Trust,30/06/2021,Mobile Phones,GENERAL SURGERY MEDICAL,VODAFONE LTD,38412702,160.20,
Department of Health,St. Helens&Knowsley Hospitals NHS Trust,30/06/2021,Mobile Phones,GYNAE OUTPATIEN ST HELENS,VODAFONE LTD,38412702,36.00,
Department of Health,St. Helens&Knowsley Hospitals NHS Trust,30/06/2021,Mobile Phones,HAEM + BLOOD TRANSFUSION,VODAFONE LTD,38412702,180.00,
Department of Health,St. Helens&Knowsley Hospitals NHS Trust,30/06/2021,Mobile Phones,HAEMATOLOGY MEDICAL,VODAFONE LTD,38412702,190.48,
Department of Health,St. Helens&Knowsley Hospitals NHS Trust,30/06/2021,Mobile Phones,HISTOPATHOLOGY/MORTUARY,VODAFONE LTD,38412702,18.36,
Department of Health,St. Helens&Knowsley Hospitals NHS Trust,30/06/2021,Mobile Phones,HOSPITAL DISCHARGE TEAM,VODAFONE LTD,38412702,44.80,
Department of Health,St. Helens&Knowsley Hospitals NHS Trust,30/06/2021,Mobile Phones,HUMAN RESOURCES - CORE HR,VODAFONE LTD,38412702,112.04,
Department of Health,St. Helens&Knowsley Hospitals NHS Trust,30/06/2021,Mobile Phones,HUMAN RESOURCES - RESOURCING,VODAFONE LTD,38412702,"1,391.36",
Department of Health,St. Helens&Knowsley Hospitals NHS Trust,30/06/2021,Mobile Phones,ICU MEDICAL STAFF WHISTON,VODAFONE LTD,38412702,324.14,
Department of Health,St. Helens&Knowsley Hospitals NHS Trust,30/06/2021,Mobile Phones,ICU NURSING WHISTON,VODAFONE LTD,38412702,9.00,
Department of Health,St. Helens&Knowsley Hospitals NHS Trust,30/06/2021,Mobile Phones,INFECTION CONTROL,VODAFONE LTD,38412702,83.98,
Department of Health,St. Helens&Knowsley Hospitals NHS Trust,30/06/2021,Mobile Phones,INFORMATION DEPARTMENT,VODAFONE LTD,38412702,180.00,
Department of Health,St. Helens&Knowsley Hospitals NHS Trust,30/06/2021,Mobile Phones,INTERNATIONAL RECRUITMENT,VODAFONE LTD,38412702,68.90,
Department of Health,St. Helens&Knowsley Hospitals NHS Trust,30/06/2021,Mobile Phones,IRREG MAINT WHISTON,VODAFONE LTD,38412702,184.64,
Department of Health,St. Helens&Knowsley Hospitals NHS Trust,30/06/2021,Mobile Phones,IV THERAPY ST HELENS,VODAFONE LTD,38412702,254.57,
Department of Health,St. Helens&Knowsley Hospitals NHS Trust,30/06/2021,Mobile Phones,LEGAL SERVICES,VODAFONE LTD,38412702,36.00,
Department of Health,St. Helens&Knowsley Hospitals NHS Trust,30/06/2021,Mobile Phones,LIBRARY SERVICES,VODAFONE LTD,38412702,36.00,
Department of Health,St. Helens&Knowsley Hospitals NHS Trust,30/06/2021,Mobile Phones,MARSHALLS CROSS MEDICAL CENTRE,VODAFONE LTD,38412702,36.00,
Department of Health,St. Helens&Knowsley Hospitals NHS Trust,30/06/2021,Mobile Phones,MED SECRETARIES BAND 3,VODAFONE LTD,38412702,81.30,
Department of Health,St. Helens&Knowsley Hospitals NHS Trust,30/06/2021,Mobile Phones,MEDICAL CARE GROUP MGT,VODAFONE LTD,38412702,"1,737.13",
Department of Health,St. Helens&Knowsley Hospitals NHS Trust,30/06/2021,Mobile Phones,MGMT SPECIALIST MIDWIVES,VODAFONE LTD,38412702,508.74,
Department of Health,St. Helens&Knowsley Hospitals NHS Trust,30/06/2021,Mobile Phones,MICROBIOLOGY DEPT,VODAFONE LTD,38412702,279.00,
Department of Health,St. Helens&Knowsley Hospitals NHS Trust,30/06/2021,Mobile Phones,MICROBIOLOGY MED STAFF,VODAFONE LTD,38412702,72.00,
Department of Health,St. Helens&Knowsley Hospitals NHS Trust,30/06/2021,Mobile Phones,MMDA PROGRAMME COSTS - SHARED SERVICES,VODAFONE LTD,38412702,"3,180.37",
Department of Health,St. Helens&Knowsley Hospitals NHS Trust,30/06/2021,Mobile Phones,NEWS2 Project,VODAFONE LTD,38412702,36.00,
Department of Health,St. Helens&Knowsley Hospitals NHS Trust,30/06/2021,Mobile Phones,NEWTON HOSPITAL OP,VODAFONE LTD,38412702,54.88,
Department of Health,St. Helens&Knowsley Hospitals NHS Trust,30/06/2021,Mobile Phones,NEWTON INTERMEDIATE CARE SERVICE,VODAFONE LTD,38412702,271.80,
Department of Health,St. Helens&Knowsley Hospitals NHS Trust,30/06/2021,Mobile Phones,NORTH WEST HEE,VODAFONE LTD,38412702,681.77,
Department of Health,St. Helens&Knowsley Hospitals NHS Trust,30/06/2021,Mobile Phones,NURSING ADMINISTRATION,VODAFONE LTD,38412702,598.50,
Department of Health,St. Helens&Knowsley Hospitals NHS Trust,30/06/2021,Mobile Phones,NURSING DIRECTOR ADMIN STAFF,VODAFONE LTD,38412702,36.00,
Department of Health,St. Helens&Knowsley Hospitals NHS Trust,30/06/2021,Mobile Phones,OBS + GYNAE MEDICAL STAFF,VODAFONE LTD,38412702,72.00,
Department of Health,St. Helens&Knowsley Hospitals NHS Trust,30/06/2021,Mobile Phones,OCCUPATIONAL HEALTH MED,VODAFONE LTD,38412702,115.72,
Department of Health,St. Helens&Knowsley Hospitals NHS Trust,30/06/2021,Mobile Phones,OCCUPATIONAL HEALTH NURS,VODAFONE LTD,38412702,109.66,
Department of Health,St. Helens&Knowsley Hospitals NHS Trust,30/06/2021,Mobile Phones,ORGANISATIONAL L And D,VODAFONE LTD,38412702,9.00,
Department of Health,St. Helens&Knowsley Hospitals NHS Trust,30/06/2021,Mobile Phones,ORTHOPAEDIC MEDICAL STAFF,VODAFONE LTD,38412702,45.08,
Department of Health,St. Helens&Knowsley Hospitals NHS Trust,30/06/2021,Mobile Phones,OUTPATIENTS ST HELENS,VODAFONE LTD,38412702,36.00,
Department of Health,St. Helens&Knowsley Hospitals NHS Trust,30/06/2021,Mobile Phones,PAED SPECIALIST NURSES,VODAFONE LTD,38412702,99.46,
Department of Health,St. Helens&Knowsley Hospitals NHS Trust,30/06/2021,Mobile Phones,PAEDIATRIC MEDICAL STAFF,VODAFONE LTD,38412702,9.00,
Department of Health,St. Helens&Knowsley Hospitals NHS Trust,30/06/2021,Mobile Phones,PAEDIATRICS WARD CLERKS,VODAFONE LTD,38412702,9.00,
Department of Health,St. Helens&Knowsley Hospitals NHS Trust,30/06/2021,Mobile Phones,PALLIATIVE CARE WHISTON,VODAFONE LTD,38412702,108.00,
Department of Health,St. Helens&Knowsley Hospitals NHS Trust,30/06/2021,Mobile Phones,PATHOLOGY GENERAL,VODAFONE LTD,38412702,659.90,
Department of Health,St. Helens&Knowsley Hospitals NHS Trust,30/06/2021,Mobile Phones,PATIENT ACCESS MGMT,VODAFONE LTD,38412702,108.00,
Department of Health,St. Helens&Knowsley Hospitals NHS Trust,30/06/2021,Mobile Phones,PAYING PATIENTS,VODAFONE LTD,38412702,108.00,
Department of Health,St. Helens&Knowsley Hospitals NHS Trust,30/06/2021,Mobile Phones,PAYROLL SERVICES,VODAFONE LTD,38412702,355.68,
Department of Health,St. Helens&Knowsley Hospitals NHS Trust,30/06/2021,Mobile Phones,PFI DESIGN + CONSTRUCTION,VODAFONE LTD,38412702,252.00,
Department of Health,St. Helens&Knowsley Hospitals NHS Trust,30/06/2021,Mobile Phones,PHARMACY GENERAL,VODAFONE LTD,38412702,718.14,
Department of Health,St. Helens&Knowsley Hospitals NHS Trust,30/06/2021,Mobile Phones,PROJECTS And TRAINING,VODAFONE LTD,38412702,363.72,
Department of Health,St. Helens&Knowsley Hospitals NHS Trust,30/06/2021,Mobile Phones,RADIOGRAPHY WHISTON,VODAFONE LTD,38412702,72.36,
Department of Health,St. Helens&Knowsley Hospitals NHS Trust,30/06/2021,Mobile Phones,RADIOLOGY MEDICAL STAFF,VODAFONE LTD,38412702,38.80,
Department of Health,St. Helens&Knowsley Hospitals NHS Trust,30/06/2021,Mobile Phones,RD AND I,VODAFONE LTD,38412702,153.00,
Department of Health,St. Helens&Knowsley Hospitals NHS Trust,30/06/2021,Mobile Phones,REABLEMENT TEAM,VODAFONE LTD,38412702,144.06,
Department of Health,St. Helens&Knowsley Hospitals NHS Trust,30/06/2021,Mobile Phones,REGIONAL CANCER TRANSFORMATION,VODAFONE LTD,38412702,36.00,
Department of Health,St. Helens&Knowsley Hospitals NHS Trust,30/06/2021,Mobile Phones,REGIONAL VACCINATION CENTRE,VODAFONE LTD,38412702,309.60,
Department of Health,St. Helens&Knowsley Hospitals NHS Trust,30/06/2021,Mobile Phones,RESPIRATORY NURSING,VODAFONE LTD,38412702,144.66,
Department of Health,St. Helens&Knowsley Hospitals NHS Trust,30/06/2021,Mobile Phones,RESPIRATORY SNR MEDICAL,VODAFONE LTD,38412702,382.12,
Department of Health,St. Helens&Knowsley Hospitals NHS Trust,30/06/2021,Mobile Phones,RESUSCITATION TRAINING,VODAFONE LTD,38412702,36.00,
Department of Health,St. Helens&Knowsley Hospitals NHS Trust,30/06/2021,Mobile Phones,SAFEGUARDING,VODAFONE LTD,38412702,109.16,
Department of Health,St. Helens&Knowsley Hospitals NHS Trust,30/06/2021,Mobile Phones,SANDERSON SUITE GENERAL SURGERY,VODAFONE LTD,38412702,72.00,
Department of Health,St. Helens&Knowsley Hospitals NHS Trust,30/06/2021,Mobile Phones,SEDDON SUITE TRAUMA REHAB UNIT,VODAFONE LTD,38412702,48.38,
Department of Health,St. Helens&Knowsley Hospitals NHS Trust,30/06/2021,Mobile Phones,SEPSIS,VODAFONE LTD,38412702,36.00,
Department of Health,St. Helens&Knowsley Hospitals NHS Trust,30/06/2021,Mobile Phones,SERV INCR 4 TEACHING-SIFT,VODAFONE LTD,38412702,180.40,
Department of Health,St. Helens&Knowsley Hospitals NHS Trust,30/06/2021,Mobile Phones,SERVICE DELIVERY INFRASTRUCTURE,VODAFONE LTD,38412702,180.00,
Department of Health,St. Helens&Knowsley Hospitals NHS Trust,30/06/2021,Mobile Phones,SERVICE DELIVERY OPERATIONS,VODAFONE LTD,38412702,36.00,
Department of Health,St. Helens&Knowsley Hospitals NHS Trust,30/06/2021,Mobile Phones,SEXUAL HEALTH,VODAFONE LTD,38412702,801.52,
Department of Health,St. Helens&Knowsley Hospitals NHS Trust,30/06/2021,Mobile Phones,SHARED CARE RECORD - ST HELENS HEALTH ECONOMY,VODAFONE LTD,38412702,108.00,
Department of Health,St. Helens&Knowsley Hospitals NHS Trust,30/06/2021,Mobile Phones,SOHT BLOOD SCIENCES,VODAFONE LTD,38412702,15.00,
Department of Health,St. Helens&Knowsley Hospitals NHS Trust,30/06/2021,Mobile Phones,SOHT PHLEBOTOMY,VODAFONE LTD,38412702,211.60,
Department of Health,St. Helens&Knowsley Hospitals NHS Trust,30/06/2021,Mobile Phones,ST HELENS CONTACT CARE IC THERAPY TEAM,VODAFONE LTD,38412702,25.56,
Department of Health,St. Helens&Knowsley Hospitals NHS Trust,30/06/2021,Mobile Phones,ST HELENS CONTACT CARES REABLEMENT TEAM,VODAFONE LTD,38412702,36.00,
Department of Health,St. Helens&Knowsley Hospitals NHS Trust,30/06/2021,Mobile Phones,STROKE MEDICAL STAFFING,VODAFONE LTD,38412702,9.00,
Department of Health,St. Helens&Knowsley Hospitals NHS Trust,30/06/2021,Mobile Phones,SURGICAL CARE MANAGEMENT,VODAFONE LTD,38412702,602.59,
Department of Health,St. Helens&Knowsley Hospitals NHS Trust,30/06/2021,Mobile Phones,SURGICAL CARE SECS,VODAFONE LTD,38412702,36.00,
Department of Health,St. Helens&Knowsley Hospitals NHS Trust,30/06/2021,Mobile Phones,THEATRES ANAESTHETICS WH,VODAFONE LTD,38412702,9.00,
Department of Health,St. Helens&Knowsley Hospitals NHS Trust,30/06/2021,Mobile Phones,THEATRES BURNS + PLASTICS,VODAFONE LTD,38412702,45.00,
Department of Health,St. Helens&Knowsley Hospitals NHS Trust,30/06/2021,Mobile Phones,THEATRES DIRECTORATE MGT,VODAFONE LTD,38412702,468.00,
Department of Health,St. Helens&Knowsley Hospitals NHS Trust,30/06/2021,Mobile Phones,THEATRES GEN SURGERY/UROL,VODAFONE LTD,38412702,18.00,
Department of Health,St. Helens&Knowsley Hospitals NHS Trust,30/06/2021,Mobile Phones,THEATRES MAIN ST HELEN'S,VODAFONE LTD,38412702,54.00,
Department of Health,St. Helens&Knowsley Hospitals NHS Trust,30/06/2021,Mobile Phones,THEATRES MATERNITY WH,VODAFONE LTD,38412702,18.00,
Department of Health,St. Helens&Knowsley Hospitals NHS Trust,30/06/2021,Mobile Phones,THEATRES MEDICAL STAFF,VODAFONE LTD,38412702,36.00,
Department of Health,St. Helens&Knowsley Hospitals NHS Trust,30/06/2021,Mobile Phones,THEATRES TRAU ORTHOPAEDIC,VODAFONE LTD,38412702,9.00,
Department of Health,St. Helens&Knowsley Hospitals NHS Trust,30/06/2021,Mobile Phones,THERAPY - MEDICINES FOR OLDER PEOPLE,VODAFONE LTD,38412702,9.00,
Department of Health,St. Helens&Knowsley Hospitals NHS Trust,30/06/2021,Mobile Phones,THERAPY MANAGEMENT & ADMIN.,VODAFONE LTD,38412702,894.88,
Department of Health,St. Helens&Knowsley Hospitals NHS Trust,30/06/2021,Mobile Phones,TISSUE VIABILITY,VODAFONE LTD,38412702,18.00,
Department of Health,St. Helens&Knowsley Hospitals NHS Trust,30/06/2021,Mobile Phones,TRANSFER LOUNGE,VODAFONE LTD,38412702,15.29,
Department of Health,St. Helens&Knowsley Hospitals NHS Trust,30/06/2021,Mobile Phones,TRUST RECHARGES,VODAFONE LTD,38412702,"3,099.57",
Department of Health,St. Helens&Knowsley Hospitals NHS Trust,30/06/2021,Mobile Phones,UROLOGY MEDICAL STAFF,VODAFONE LTD,38412702,108.00,
Department of Health,St. Helens&Knowsley Hospitals NHS Trust,30/06/2021,Mobile Phones,UROLOGY SUITE,VODAFONE LTD,38412702,81.00,
Department of Health,St. Helens&Knowsley Hospitals NHS Trust,30/06/2021,Mobile Phones,VOLUNTEERS,VODAFONE LTD,38412702,140.14,
Department of Health,St. Helens&Knowsley Hospitals NHS Trust,30/06/2021,Mobile Phones,WARD 1A WINTER,VODAFONE LTD,38412702,81.00,
Department of Health,St. Helens&Knowsley Hospitals NHS Trust,30/06/2021,Mobile Phones,WARD 1B ACUTE MEDICAL UNIT,VODAFONE LTD,38412702,108.00,
Department of Health,St. Helens&Knowsley Hospitals NHS Trust,30/06/2021,Mobile Phones,WARD 1C ACUTE MEDICAL UNIT,VODAFONE LTD,38412702,109.14,
Department of Health,St. Helens&Knowsley Hospitals NHS Trust,30/06/2021,Mobile Phones,WARD 1E CORONARY CARE UNIT,VODAFONE LTD,38412702,36.00,
Department of Health,St. Helens&Knowsley Hospitals NHS Trust,30/06/2021,Mobile Phones,WARD 2A HAEMATOLOGY,VODAFONE LTD,38412702,97.93,
Department of Health,St. Helens&Knowsley Hospitals NHS Trust,30/06/2021,Mobile Phones,WARD 2B RESPIRATORY,VODAFONE LTD,38412702,36.00,
Department of Health,St. Helens&Knowsley Hospitals NHS Trust,30/06/2021,Mobile Phones,WARD 2C RESPIRATORY,VODAFONE LTD,38412702,72.00,
Department of Health,St. Helens&Knowsley Hospitals NHS Trust,30/06/2021,Mobile Phones,WARD 2D GENERAL MEDICINE,VODAFONE LTD,38412702,36.00,
Department of Health,St. Helens&Knowsley Hospitals NHS Trust,30/06/2021,Mobile Phones,WARD 3A PLASTICS,VODAFONE LTD,38412702,117.00,
Department of Health,St. Helens&Knowsley Hospitals NHS Trust,30/06/2021,Mobile Phones,WARD 3ALPHA ORTHOPAEDICS,VODAFONE LTD,38412702,36.00,
Department of Health,St. Helens&Knowsley Hospitals NHS Trust,30/06/2021,Mobile Phones,WARD 3B ORTHOPAEDICS,VODAFONE LTD,38412702,36.79,
Department of Health,St. Helens&Knowsley Hospitals NHS Trust,30/06/2021,Mobile Phones,WARD 3C GENERAL MEDICINE,VODAFONE LTD,38412702,36.00,
Department of Health,St. Helens&Knowsley Hospitals NHS Trust,30/06/2021,Mobile Phones,WARD 3D GASTROENTEROLOGY,VODAFONE LTD,38412702,72.00,
Department of Health,St. Helens&Knowsley Hospitals NHS Trust,30/06/2021,Mobile Phones,WARD 3E GYNAECOLOGY,VODAFONE LTD,38412702,108.00,
Department of Health,St. Helens&Knowsley Hospitals NHS Trust,30/06/2021,Mobile Phones,WARD 3F PAEDIATRICS,VODAFONE LTD,38412702,100.62,
Department of Health,St. Helens&Knowsley Hospitals NHS Trust,30/06/2021,Mobile Phones,WARD 4A GENERAL SURGERY,VODAFONE LTD,38412702,36.00,
Department of Health,St. Helens&Knowsley Hospitals NHS Trust,30/06/2021,Mobile Phones,WARD 4B GENERAL SURGERY,VODAFONE LTD,38412702,36.00,
Department of Health,St. Helens&Knowsley Hospitals NHS Trust,30/06/2021,Mobile Phones,WARD 4C GENERAL SURGERY,VODAFONE LTD,38412702,48.00,
Department of Health,St. Helens&Knowsley Hospitals NHS Trust,30/06/2021,Mobile Phones,WARD 4D BURNS,VODAFONE LTD,38412702,101.16,
Department of Health,St. Helens&Knowsley Hospitals NHS Trust,30/06/2021,Mobile Phones,WARD 5A CARE OF THE ELDERLY,VODAFONE LTD,38412702,36.00,
Department of Health,St. Helens&Knowsley Hospitals NHS Trust,30/06/2021,Mobile Phones,WARD 5B CARE OF THE ELDERLY,VODAFONE LTD,38412702,48.00,
Department of Health,St. Helens&Knowsley Hospitals NHS Trust,30/06/2021,Mobile Phones,WARD 5C ACUTE STROKE UNIT (HASU),VODAFONE LTD,38412702,201.00,
Department of Health,St. Helens&Knowsley Hospitals NHS Trust,30/06/2021,Mobile Phones,WARD 5D ASU,VODAFONE LTD,38412702,132.01,
Department of Health,St. Helens&Knowsley Hospitals NHS Trust,30/06/2021,Mobile Phones,WEST MIDLANDS HEE,VODAFONE LTD,38412702,252.00,
Department of Health,St. Helens&Knowsley Hospitals NHS Trust,30/06/2021,Mobile Phones,WHIS THEATRES ANCIL & EMERG SUP STAFF,VODAFONE LTD,38412702,90.00,
Department of Health,St. Helens&Knowsley Hospitals NHS Trust,30/06/2021,Mobile Phones,WHIS THEATRES EMERG WKDAY NGTS WKEND,VODAFONE LTD,38412702,36.00,
Department of Health,St. Helens&Knowsley Hospitals NHS Trust,30/06/2021,Mobile Phones,WHISTON EQUIPMENT POOL,VODAFONE LTD,38412702,174.00,
Department of Health,St. Helens&Knowsley Hospitals NHS Trust,30/06/2021,Mobile Phones,WOMENS OPD,VODAFONE LTD,38412702,45.00,
Department of Health,St. Helens&Knowsley Hospitals NHS Trust,30/06/2021,Mobile Phones,WORKFORCE INTELLIGENCE,VODAFONE LTD,38412702,108.00,
Department of Health,St. Helens&Knowsley Hospitals NHS Trust,30/06/2021,NonNHS Trade Pybls Curr,Various,Various,38507750,"197,672.66",
Department of Health,St. Helens&Knowsley Hospitals NHS Trust,30/06/2021,NonNHS Trade Pybls Curr,Various,Various,38507763,"121,304.76",
Department of Health,St. Helens&Knowsley Hospitals NHS Trust,30/06/2021,NonNHS Trade Pybls Curr,Various,Various,38587120,"186,306.59",
Department of Health,St. Helens&Knowsley Hospitals NHS Trust,30/06/2021,NonNHS Trade Pybls Curr,Various,Various,38659970,"188,408.70",
Department of Health,St. Helens&Knowsley Hospitals NHS Trust,30/06/2021,Office Equipment,SERVICE DELIVERY OPERATIONS,CANON UK LTD,38437996,"43,777.77",
Department of Health,St. Helens&Knowsley Hospitals NHS Trust,30/06/2021,Other recvables - Current,Balance Sheet,VODAFONE LTD,38412702,36.00,
Department of Health,St. Helens&Knowsley Hospitals NHS Trust,30/06/2021,Other recvables - Current,Balance Sheet,PLUS US MEDICAL CARE SERVICES LTD,38660707,"37,957.18",
Department of Health,St. Helens&Knowsley Hospitals NHS Trust,30/06/2021,Other recvables - Current,Balance Sheet,PLUS US MEDICAL CARE SERVICES LTD,38720921,338.31,
Department of Health,St. Helens&Knowsley Hospitals NHS Trust,30/06/2021,Other recvables - Current,Balance Sheet,PLUS US MEDICAL CARE SERVICES LTD,38720921,"48,969.72",
Department of Health,St. Helens&Knowsley Hospitals NHS Trust,30/06/2021,Other recvables - Current,Balance Sheet,PLUS US MEDICAL CARE SERVICES LTD,38720922,276.59,
Department of Health,St. Helens&Knowsley Hospitals NHS Trust,30/06/2021,Other recvables - Current,Balance Sheet,PLUS US MEDICAL CARE SERVICES LTD,38720922,"41,709.87",
Department of Health,St. Helens&Knowsley Hospitals NHS Trust,30/06/2021,Other recvables - Current,Balance Sheet,PLUS US MEDICAL CARE SERVICES LTD,38720923,303.09,
Department of Health,St. Helens&Knowsley Hospitals NHS Trust,30/06/2021,Other recvables - Current,Balance Sheet,PLUS US MEDICAL CARE SERVICES LTD,38720923,"45,321.94",
Department of Health,St. Helens&Knowsley Hospitals NHS Trust,30/06/2021,Postage & Carriage,HOTEL SERVICES MGT ST H,PITNEY BOWES LTD,38530135,"51,070.30",
Department of Health,St. Helens&Knowsley Hospitals NHS Trust,30/06/2021,Rates,RATES/WATER WHISTON,KNOWSLEY METROPOLITAN BOROUGH COUNCIL,38594571,"74,225.00",
Department of Health,St. Helens&Knowsley Hospitals NHS Trust,30/06/2021,Rates,RATES/WATER ST HELENS,ST HELENS COUNCIL,38594573,"60,416.00",
Department of Health,St. Helens&Knowsley Hospitals NHS Trust,30/06/2021,Rent,COMMUNITY RENT,FOUR ACRE HEALTH CENTRE,38495704,"35,585.00",
Department of Health,St. Helens&Knowsley Hospitals NHS Trust,30/06/2021,Rent,COMMUNITY RENT,COMMUNITY HEALTH PARTNERSHIPS LTD,38530084,"108,926.98",
Department of Health,St. Helens&Knowsley Hospitals NHS Trust,30/06/2021,Rent,B + P MEDICAL STAFF,SOUTHPORT AND ORMSKIRK HOSPITAL NHS TRUST,38607908,"33,861.00",
Department of Health,St. Helens&Knowsley Hospitals NHS Trust,30/06/2021,Rent,B + P MEDICAL STAFF,BETSI CADWALADR UNIVERSITY HEALTH BOARD,38647646,"65,842.29",
Department of Health,St. Helens&Knowsley Hospitals NHS Trust,30/06/2021,SrvcsRecd-FoundationTrust,CARDIOLOGY SNR MEDICAL,LIVERPOOL HEART & CHEST HOSPITAL NHS TRUST,38552124,"40,019.10",
Department of Health,St. Helens&Knowsley Hospitals NHS Trust,30/06/2021,SrvcsRecd-FoundationTrust,CHEMICAL PATHOLOGY DEPT,LANCASHIRE TEACHING HOSPITALS NHS FOUNDATION TRUST,38586985,"39,643.09",
Department of Health,St. Helens&Knowsley Hospitals NHS Trust,30/06/2021,SrvcsRecd-FoundationTrust,CHEMICAL PATHOLOGY DEPT,LANCASHIRE TEACHING HOSPITALS NHS FOUNDATION TRUST,38677328,"38,139.27",
Department of Health,St. Helens&Knowsley Hospitals NHS Trust,30/06/2021,SrvcsRecd-Other NHS,C19 VAC PRGME HR PROJECT SUPPORT,NHS MIDLANDS AND LANCASHIRE CSU,38529981,"39,953.00",
Department of Health,St. Helens&Knowsley Hospitals NHS Trust,30/06/2021,Stocks Raw Materials,Balance Sheet,HEALTHCARE AT HOME LTD,38455674,"103,453.82",
Department of Health,St. Helens&Knowsley Hospitals NHS Trust,30/06/2021,Stocks Raw Materials,Balance Sheet,ALLIANCE HEALTHCARE DISTRIBUTION LTD,38455675,"30,786.92",
Department of Health,St. Helens&Knowsley Hospitals NHS Trust,30/06/2021,Stocks Raw Materials,Balance Sheet,ALLIANCE HEALTHCARE DISTRIBUTION LTD,38455675,"163,672.90",
Department of Health,St. Helens&Knowsley Hospitals NHS Trust,30/06/2021,Stocks Raw Materials,Balance Sheet,HEALTHCARE AT HOME LTD,38455676,"106,793.46",
Department of Health,St. Helens&Knowsley Hospitals NHS Trust,30/06/2021,Stocks Raw Materials,Balance Sheet,NOVARTIS PHARMACEUTICALS UK LTD,38470376,"30,772.22",
Department of Health,St. Helens&Knowsley Hospitals NHS Trust,30/06/2021,Stocks Raw Materials,Balance Sheet,NOVARTIS PHARMACEUTICALS UK LTD,38470376,36.72,
Department of Health,St. Helens&Knowsley Hospitals NHS Trust,30/06/2021,Stocks Raw Materials,Balance Sheet,NOVARTIS PHARMACEUTICALS UK LTD,38470376,"1,663.20",
Department of Health,St. Helens&Knowsley Hospitals NHS Trust,30/06/2021,Stocks Raw Materials,Balance Sheet,NOVARTIS PHARMACEUTICALS UK LTD,38470376,98.88,
Department of Health,St. Helens&Knowsley Hospitals NHS Trust,30/06/2021,Stocks Raw Materials,Balance Sheet,NOVARTIS PHARMACEUTICALS UK LTD,38470376,409.68,
Department of Health,St. Helens&Knowsley Hospitals NHS Trust,30/06/2021,Stocks Raw Materials,Balance Sheet,NOVARTIS PHARMACEUTICALS UK LTD,38470376,98.88,
Department of Health,St. Helens&Knowsley Hospitals NHS Trust,30/06/2021,Stocks Raw Materials,Balance Sheet,NOVARTIS PHARMACEUTICALS UK LTD,38470376,12.42,
Department of Health,St. Helens&Knowsley Hospitals NHS Trust,30/06/2021,Stocks Raw Materials,Balance Sheet,NOVARTIS PHARMACEUTICALS UK LTD,38470453,"33,122.88",
Department of Health,St. Helens&Knowsley Hospitals NHS Trust,30/06/2021,Stocks Raw Materials,Balance Sheet,NOVARTIS PHARMACEUTICALS UK LTD,38470453,"1,881.14",
Department of Health,St. Helens&Knowsley Hospitals NHS Trust,30/06/2021,Stocks Raw Materials,Balance Sheet,NOVARTIS PHARMACEUTICALS UK LTD,38470453,1.12,
Department of Health,St. Helens&Knowsley Hospitals NHS Trust,30/06/2021,Stocks Raw Materials,Balance Sheet,NOVARTIS PHARMACEUTICALS UK LTD,38470453,20.90,
Department of Health,St. Helens&Knowsley Hospitals NHS Trust,30/06/2021,Stocks Raw Materials,Balance Sheet,NOVARTIS PHARMACEUTICALS UK LTD,38470453,43.16,
Department of Health,St. Helens&Knowsley Hospitals NHS Trust,30/06/2021,Stocks Raw Materials,Balance Sheet,NOVARTIS PHARMACEUTICALS UK LTD,38470453,122.76,
Department of Health,St. Helens&Knowsley Hospitals NHS Trust,30/06/2021,Stocks Raw Materials,Balance Sheet,NOVARTIS PHARMACEUTICALS UK LTD,38470453,5.62,
Department of Health,St. Helens&Knowsley Hospitals NHS Trust,30/06/2021,Stocks Raw Materials,Balance Sheet,NOVARTIS PHARMACEUTICALS UK LTD,38470453,11.06,
Department of Health,St. Helens&Knowsley Hospitals NHS Trust,30/06/2021,Stocks Raw Materials,Balance Sheet,NOVARTIS PHARMACEUTICALS UK LTD,38470453,"2,620.81",
Department of Health,St. Helens&Knowsley Hospitals NHS Trust,30/06/2021,Stocks Raw Materials,Balance Sheet,AAH PHARMACEUTICALS LTD,38484675,"167,535.45",
Department of Health,St. Helens&Knowsley Hospitals NHS Trust,30/06/2021,Stocks Raw Materials,Balance Sheet,ALLOGA UK LTD,38608201,"120,331.55",
Department of Health,St. Helens&Knowsley Hospitals NHS Trust,30/06/2021,Stocks Raw Materials,Balance Sheet,HEALTHCARE AT HOME LTD,38608202,"62,370.33",
Department of Health,St. Helens&Knowsley Hospitals NHS Trust,30/06/2021,Stocks Raw Materials,Balance Sheet,HEALTHCARE AT HOME LTD,38608203,"54,931.21",
Department of Health,St. Helens&Knowsley Hospitals NHS Trust,30/06/2021,Stocks Raw Materials,Balance Sheet,PHOENIX HEALTHCARE DISTRIBUTION LTD,38660706,"82,975.17",
Department of Health,St. Helens&Knowsley Hospitals NHS Trust,30/06/2021,Stocks Raw Materials,Balance Sheet,HEALTHCARE AT HOME LTD,38660708,"79,035.43",
Department of Health,St. Helens&Knowsley Hospitals NHS Trust,30/06/2021,Stocks Raw Materials,Balance Sheet,NOVARTIS PHARMACEUTICALS UK LTD,38706871,"29,917.44",
Department of Health,St. Helens&Knowsley Hospitals NHS Trust,30/06/2021,Stocks Raw Materials,Balance Sheet,NOVARTIS PHARMACEUTICALS UK LTD,38706871,"2,717.21",
Department of Health,St. Helens&Knowsley Hospitals NHS Trust,30/06/2021,Stocks Raw Materials,Balance Sheet,NOVARTIS PHARMACEUTICALS UK LTD,38706871,197.76,
Department of Health,St. Helens&Knowsley Hospitals NHS Trust,30/06/2021,Stocks Raw Materials,Balance Sheet,NOVARTIS PHARMACEUTICALS UK LTD,38706871,247.19,
Department of Health,St. Helens&Knowsley Hospitals NHS Trust,30/06/2021,Stocks Raw Materials,Balance Sheet,NOVARTIS PHARMACEUTICALS UK LTD,38706871,491.62,
Department of Health,St. Helens&Knowsley Hospitals NHS Trust,30/06/2021,Stocks Raw Materials,Balance Sheet,NOVARTIS PHARMACEUTICALS UK LTD,38706871,"10,483.20",
Department of Health,St. Helens&Knowsley Hospitals NHS Trust,30/06/2021,Stocks Raw Materials,Balance Sheet,HEALTHCARE AT HOME LTD,38720924,"30,568.25",
Department of Health,St. Helens&Knowsley Hospitals NHS Trust,30/06/2021,Water,RATES/WATER WHISTON,WATER PLUS,38716862,"40,494.76",
